[Event "IIFL Wealth 4th Mumbai Open"]
[Site "Mumbai"]
[Date "2019.01.02"]
[Round "4"]
[White "Samrat, Ghorai"]
[Black "Mokashi, Rohit"]
[Result "1-0"]
[ECO "B10"]
[WhiteElo "1984"]
[BlackElo "1641"]
[Annotator "NA"]
[PlyCount "63"]
[EventDate "2018.12.30"]
[EventType "swiss"]
[EventCountry "IND"]
[SourceTitle "playchess.com"]
[Source "ChessBase"]
[SourceQuality "1"]
[TimeControl "40/5400+30:1800+30"]

1. e4 {[%emt 0:01:52]} c6 {[%emt 0:00:00]} 2. Nc3 {[%emt 0:00:25]} d5 {[%emt 0:00:08]} 3. Nf3 {[%emt 0:00:04]} dxe4 {[%emt 0:00:14]} 4. Nxe4 {[%emt 0:00:05]} Nf6 {[%emt 0:00:16]} 5. Ng3 {[%emt 0:01:08]} g6 {[%emt 0:00:20]} 6. d4 {[%emt 0:00:38]} Bg7 {[%emt 0:00:17]} 7. c4 {[%emt 0:02:45]} O-O {[%emt 0:00:38]} 8. Be2 {[%emt 0:00:11]} b6 {[%emt 0:08:07]} 9. O-O {[%emt 0:01:39]} Bb7 {[%emt 0:00:21]} 10. Bf4 {[%emt 0:05:13]} c5 {[%emt 0:04:35]} 11. d5 {[%emt 0:02:25]} Nbd7 {[%emt 0:02:47]} 12. Qb3 {[%emt 0:19:22]} Ng4 {[%emt 0:06:42]} 13. Rad1 {[%emt 0:04:03]} Nge5 {[%emt 0:06:01]} 14. Rfe1 {[%emt 0:02:11]} Re8 {[%emt 0:10:02]} 15. h4 {[%emt 0:12:42]} Nxf3+ {[%emt 0:07:26]} 16. Bxf3 {[%emt 0:00:09]} a6 {[%emt 0:08:30]} 17. Rd2 {[%emt 0:16:36]} Bd4 {[%emt 0:17:04]} 18. Rde2 {[%emt 0:02:57]} Ra7 {[%emt 0:02:50]} 19. h5 {[%emt 0:10:27]} b5 {[%emt 0:01:33]} 20. hxg6 {[%emt 0:01:37]} hxg6 {[%emt 0:00:14]} 21. cxb5 {[%emt 0:05:00]} axb5 {[%emt 0:00:14]} 22. Bd6 {[%emt 0:01:33]} Nf6 {[%emt 0:12:03]} 23. Bxe7 {[%emt 0:00:41]} Qd7 {[%emt 0:02:10]} 24. d6 {[%emt 0:01:39]} Ba6 {[%emt 0:07:55]} 25. Ne4 {[%emt 0:03:10]} Nxe4 {[%emt 0:00:58]} 26. Rxe4 {[%emt 0:00:09]} Bb7 {[%emt 0:00:52]} 27. Rf4 {[%emt 0:00:17]} Bxf3 {[%emt 0:00:28]} 28. Qxf7+ {[%emt 0:00:09]} Kh8 {[%emt 0:00:19]} 29. Bf6+ {[%emt 0:00:38]} Bxf6 {[%emt 0:00:09]} 30. Rxe8+ {[%emt 0:00:04]} Qxe8 {[%emt 0:00:26]} 31. Qxe8+ {[%emt 0:00:05]} Kg7 {[%emt 0:00:12]} 32. Rxf3 {[%emt 0:00:10] Kg8} 1-0

[Event "IIFL Wealth 4th Mumbai Open"]
[Site "Mumbai"]
[Date "2019.01.02"]
[Round "4"]
[White "Kothari, Swapnil"]
[Black "Makwana, Devam"]
[Result "1-0"]
[ECO "D10"]
[WhiteElo "1870"]
[BlackElo "1617"]
[Annotator "NA"]
[PlyCount "49"]
[EventDate "2018.12.30"]
[EventType "swiss"]
[EventCountry "IND"]
[SourceTitle "playchess.com"]
[Source "ChessBase"]
[SourceQuality "1"]
[TimeControl "40/5400+30:1800+30"]

1. d4 {[%emt 0:00:00]} d5 {[%emt 0:00:00]} 2. c4 {[%emt 0:00:00]} c6 {[%emt 0:00:00]} 3. cxd5 {[%emt 0:00:00]} cxd5 {[%emt 0:00:00]} 4. Nc3 {[%emt 0:00:00]} Nf6 {[%emt 0:00:19]} 5. Nf3 {[%emt 0:00:00]} Bf5 {[%emt 0:00:23]} 6. g3 {[%emt 0:00:31]} Nc6 {[%emt 0:00:38]} 7. Bg2 {[%emt 0:00:11]} e6 {[%emt 0:01:32]} 8. O-O {[%emt 0:00:16]} Bd6 {[%emt 0:02:12]} 9. Nh4 {[%emt 0:08:16]} Bg6 {[%emt 0:01:54]} 10. Bg5 {[%emt 0:07:00]} Qb6 {[%emt 0:08:46]} 11. Nxg6 {[%emt 0:08:04]} hxg6 {[%emt 0:00:27]} 12. Bxf6 {[%emt 0:03:27]} gxf6 {[%emt 0:00:08]} 13. e4 {[%emt 0:00:11]} Nxd4 {[%emt 0:23:25]} 14. exd5 {[%emt 0:08:46]} e5 {[%emt 0:00:46]} 15. Ne4 {[%emt 0:01:06]} Ke7 {[%emt 0:02:50]} 16. Rc1 {[%emt 0:10:06]} Rac8 {[%emt 0:05:50]} 17. Rxc8 {[%emt 0:01:04]} Rxc8 {[%emt 0:00:01]} 18. Qg4 {[%emt 0:01:15]} Nf5 {[%emt 0:03:00]} 19. Qf3 {[%emt 0:04:10]} Bb8 {[%emt 0:11:27]} 20. Bh3 {[%emt 0:02:59]} Rc2 {[%emt 0:03:20]} 21. Bxf5 {[%emt 0:00:51]} gxf5 {[%emt 0:00:05]} 22. Qxf5 {[%emt 0:00:07]} Rxb2 {[%emt 0:04:15]} 23. d6+ {[%emt 0:01:12]} Kf8 {[%emt 0:00:23]} 24. Qxf6 {[%emt 0:00:53] Ke7 Qf5+} Bxd6 25. Qf3 1-0

[Event "IIFL Wealth 4th Mumbai Open"]
[Site "Mumbai"]
[Date "2019.01.02"]
[Round "4"]
[White "Dave, Sneh"]
[Black "Laddha, Yash Jayesh"]
[Result "1-0"]
[ECO "E21"]
[WhiteElo "1851"]
[BlackElo "1449"]
[Annotator "NA"]
[PlyCount "40"]
[EventDate "2018.12.30"]
[EventType "swiss"]
[EventCountry "IND"]
[SourceTitle "playchess.com"]
[Source "ChessBase"]
[SourceQuality "1"]
[TimeControl "40/5400+30:1800+30"]

1. d4 {[%emt 0:00:00]} Nf6 {[%emt 0:00:00]} 2. c4 {[%emt 0:00:00]} e6 {[%emt 0:00:00]} 3. Nf3 {[%emt 0:00:00]} Bb4+ {[%emt 0:00:00]} 4. Nc3 {[%emt 0:00:00]} c5 {[%emt 0:02:34]} 5. e3 {[%emt 0:01:48]} O-O {[%emt 0:01:02]} 6. Qc2 {[%emt 0:02:53]} d6 {[%emt 0:01:23]} 7. Bd2 {[%emt 0:04:27]} Nc6 {[%emt 0:03:58]} 8. a3 {[%emt 0:00:10]} Bxc3 {[%emt 0:01:14]} 9. Bxc3 {[%emt 0:00:03]} Re8 {[%emt 0:04:32]} 10. b4 {[%emt 0:12:43]} Qe7 {[%emt 0:28:02]} 11. b5 {[%emt 0:18:17]} Nb8 {[%emt 0:04:21]} 12. Rd1 {[%emt 0:00:18]} Nbd7 {[%emt 0:03:24]} 13. Ne5 {[%emt 0:00:49]} Nf8 {[%emt 0:11:56]} 14. Be2 {[%emt 0:02:00]} Bd7 {[%emt 0:03:33]} 15. Bf3 {[%emt 0:01:51]} Rab8 {[%emt 0:01:44]} 16. h4 {[%emt 0:06:35]} h6 {[%emt 0:04:28]} 17. g4 {[%emt 0:00:22]} N6h7 {[%emt 0:05:39]} 18. g5 {[%emt 0:04:54]} f6 {[%emt 0:11:27]} 19. gxh6 {[%emt 0:12:35]} gxh6 {[%emt 0:01:47]} 20. Rg1+ {[%emt 0:00:16]} Kh8 {[%emt 0:00:32]} 1-0

[Event "IIFL Wealth 4th Mumbai Open"]
[Site "Mumbai"]
[Date "2019.01.02"]
[Round "4"]
[White "Krishnan, Ritvik"]
[Black "Kriti, Mayur Patel"]
[Result "1-0"]
[ECO "C50"]
[WhiteElo "1812"]
[BlackElo "1439"]
[Annotator "NA"]
[PlyCount "151"]
[EventDate "2018.12.30"]
[EventType "swiss"]
[EventCountry "IND"]
[SourceTitle "playchess.com"]
[Source "ChessBase"]
[SourceQuality "1"]
[TimeControl "40/5400+30:1800+30"]

1. e4 e5 2. Bc4 Nf6 3. d3 Nc6 4. Nf3 Bc5 5. c3 d6 6. Bb3 a6 7. h3 Ba7 8. Nbd2 Be6 9. Bc2 Ne7 10. Nf1 Ng6 11. Ng3 h6 12. O-O O-O 13. d4 Qc8 14. Kh2 c6 15. Be3 Qc7 16. Qd2 Kh7 17. Kh1 Rad8 18. Rad1 Qc8 19. Nf5 Bxf5 20. exf5 Ne7 21. dxe5 dxe5 22. Qe2 Bxe3 23. Qxe3 Ned5 24. Qxe5 Rfe8 25. Qd4 c5 26. Qd2 Qc7 27. Qc1 Nf4 28. Rxd8 Rxd8 29. Rd1 Rxd1+ 30. Qxd1 Qc6 31. Kh2 b5 32. Qd2 Qc7 33. g3 N4d5 34. Qe2 Kg8 35. Qe5 Qb7 36. Nd2 Qb6 37. Ne4 c4 38. Nxf6+ Nxf6 39. Kg1 Qb7 40. Qe3 Qc6 41. f4 Nd5 42. Qd4 Qb6 43. Qxb6 Nxb6 44. Kf2 Kf8 45. Ke3 Ke7 46. Kd4 Kd6 47. g4 Nd5 48. Ke4 f6 49. h4 a5 50. a4 b4 51. Kd4 bxc3 52. bxc3 Nxf4 53. Be4 Ne2+ 54. Kxc4 Ke5 55. Bf3 Ng1 56. Bd1 Nh3 57. Kb5 Nf2 58. Be2 Ne4 59. c4 Nc3+ 60. Kxa5 Nxe2 61. Kb6 Kd6 62. a5 Nc3 63. a6 Na4+ 64. Kb5 Kc7 65. Kxa4 Kb6 66. Kb4 Kxa6 67. Kc5 Kb7 68. Kd6 Kc8 69. Kc6 Kd8 70. Kb7 Ke8 71. c5 Kf8 72. c6 Kg8 73. c7 Kh7 74. c8=Q h5 75. gxh5 Kh6 76. Qh8# 1-0

[Event "IIFL Wealth 4th Mumbai Open"]
[Site "Mumbai"]
[Date "2019.01.02"]
[Round "4"]
[White "Tanuj, Dayal"]
[Black "Pingale Shivraj"]
[Result "1-0"]
[ECO "C01"]
[WhiteElo "1803"]
[BlackElo "1580"]
[Annotator "NA"]
[PlyCount "176"]
[EventDate "2018.12.30"]
[EventType "swiss"]
[EventCountry "IND"]
[SourceTitle "playchess.com"]
[Source "ChessBase"]
[SourceQuality "1"]
[TimeControl "40/5400+30:1800+30"]

1. e4 {[%emt 0:00:00]} e6 {[%emt 0:00:00]} 2. d4 {[%emt 0:00:00]} d5 {[%emt 0:00:00]} 3. exd5 {[%emt 0:00:00]} exd5 {[%emt 0:00:00]} 4. Nf3 {[%emt 0:00:00]} Nf6 {[%emt 0:00:00]} 5. Bd3 {[%emt 0:00:00]} c5 {[%emt 0:00:00]} 6. c3 {[%emt 0:00:22]} Bd6 {[%emt 0:00:17]} 7. O-O {[%emt 0:00:10]} O-O {[%emt 0:00:06]} 8. h3 {[%emt 0:00:43]} Ne4 {[%emt 0:03:52]} 9. Be3 {[%emt 0:05:52]} c4 {[%emt 0:03:39]} 10. Bxe4 {[%emt 0:07:28]} dxe4 {[%emt 0:00:10]} 11. Nfd2 {[%emt 0:01:38]} f5 {[%emt 0:00:26]} 12. f4 {[%emt 0:01:57]} Be6 {[%emt 0:03:58]} 13. Qa4 {[%emt 0:08:50]} Qc7 {[%emt 0:03:20]} 14. Na3 {[%emt 0:00:12]} a6 {[%emt 0:02:00]} 15. Qd1 {[%emt 0:09:49]} b5 {[%emt 0:02:20]} 16. Nc2 {[%emt 0:01:47]} Nd7 {[%emt 0:04:10]} 17. a3 {[%emt 0:02:48]} Nf6 {[%emt 0:02:24]} 18. Qe2 {[%emt 0:05:06]} a5 {[%emt 0:01:59]} 19. g3 {[%emt 0:03:26]} Rfb8 {[%emt 0:04:47]} 20. Rfc1 {[%emt 0:03:40]} Rb7 {[%emt 0:02:32]} 21. Nf1 {[%emt 0:01:57]} Rab8 {[%emt 0:02:19]} 22. Bd2 {[%emt 0:00:13]} b4 {[%emt 0:03:29]} 23. cxb4 {[%emt 0:14:59]} axb4 24. Nxb4 {[%emt 0:00:19]} Bxb4 {[%emt 0:05:55]} 25. axb4 {[%emt 0:05:09]} Nd5 {[%emt 0:01:54]} 26. Rxc4 {[%emt 0:01:08]} Qd7 {[%emt 0:04:12]} 27. Rcc1 {[%emt 0:04:46]} Nxb4 {[%emt 0:01:10]} 28. Bc3 {[%emt 0:00:32]} Nd3 {[%emt 0:01:05]} 29. Rcb1 {[%emt 0:02:51]} Qf7 {[%emt 0:00:56]} 30. Ne3 {[%emt 0:00:11]} Ba2 {[%emt 0:01:42]} 31. Rf1 {[%emt 0:00:40]} Nxb2 {[%emt 0:04:41]} 32. Nxf5 {[%emt 0:00:41]} Bc4 {[%emt 0:00:17]} 33. Qg4 {[%emt 0:00:25]} Qg6 {[%emt 0:02:09]} 34. Rfb1 {[%emt 0:04:24]} Be6 {[%emt 0:02:32]} 35. Qxg6 {[%emt 0:00:44]} hxg6 {[%emt 0:00:02]} 36. Nd6 {[%emt 0:00:10]} Rb3 {[%emt 0:00:43]} 37. Rxb2 {[%emt 0:01:36]} Rxb2 {[%emt 0:00:29]} 38. Bxb2 {[%emt 0:00:02]} Rxb2 {[%emt 0:00:02]} 39. Ra8+ {[%emt 0:00:47]} Kh7 {[%emt 0:00:12]} 40. Nxe4 {[%emt 0:00:00]} Rb1+ {[%emt 0:00:00]} 41. Kf2 {[%emt 0:00:43]} Rb2+ {[%emt 0:00:39]} 42. Ke3 {[%emt 0:00:08]} Rb3+ {[%emt 0:01:21]} 43. Kd2 {[%emt 0:00:04]} Bg8 {[%emt 0:00:07]} 44. Ng5+ {[%emt 0:00:40]} Kh8 {[%emt 0:00:16]} 45. g4 {[%emt 0:00:08]} Rb2+ {[%emt 0:00:52]} 46. Kd3 {[%emt 0:00:20]} Rb3+ {[%emt 0:00:11]} 47. Ke4 {[%emt 0:00:05]} Rb5 {[%emt 0:00:20]} 48. d5 {[%emt 0:00:49]} Rb1 {[%emt 0:00:31]} 49. d6 {[%emt 0:05:58]} Re1+ {[%emt 0:00:36]} 50. Kd4 {[%emt 0:00:05]} Rd1+ {[%emt 0:01:04]} 51. Kc5 {[%emt 0:00:03]} Rc1+ {[%emt 0:00:15]} 52. Kb6 {[%emt 0:00:05]} Rc6+ {[%emt 0:00:11]} 53. Kb7 {[%emt 0:00:14]} Rb6+ {[%emt 0:00:57]} 54. Kc8 {[%emt 0:02:00]} Rc6+ {[%emt 0:00:16]} 55. Kd7 {[%emt 0:03:22]} Rxd6+ {[%emt 0:00:19]} 56. Ke7 {[%emt 0:00:09]} Rd7+ {[%emt 0:01:47]} 57. Ke8 {[%emt 0:00:58]} Rd4 {[%emt 0:01:09]} 58. Ra6 {[%emt 0:03:42]} Rxf4 {[%emt 0:01:38]} 59. Rxg6 {[%emt 0:00:04]} Rf1 {[%emt 0:00:32]} 60. Ke7 {[%emt 0:02:44]} Re1+ {[%emt 0:01:03]} 61. Ne6 Bxe6 {[%emt 0:01:06]} 62. Rxe6 {[%emt 0:01:10]} Rh1 {[%emt 0:00:28]} 63. Re3 {[%emt 0:00:02]} Kh7 {[%emt 0:00:35]} 64. Rf3 {[%emt 0:00:56]} Kg6 {[%emt 0:01:13]} 65. Kf8 {[%emt 0:01:38]} Kh6 {[%emt 0:01:34]} 66. Kg8 {[%emt 0:01:17]} Rh2 {[%emt 0:03:18]} 67. Re3 {[%emt 0:02:15]} g6 {[%emt 0:05:18]} 68. Rf3 {[%emt 0:01:16]} Kg5 {[%emt 0:02:34]} 69. Kf7 {[%emt 0:02:14]} Ra2 {[%emt 0:00:56]} 70. Re3 {[%emt 0:01:05]} Ra7+ {[%emt 0:02:02]} 71. Re7 {[%emt 0:00:07]} Ra6 {[%emt 0:00:59]} 72. Kg7 {[%emt 0:05:08]} Kh4 {[%emt 0:00:53]} 73. Re3 {[%emt 0:02:26]} Kg5 {[%emt 0:01:53]} 74. Re5+ {[%emt 0:03:10]} Kh4 {[%emt 0:00:19]} 75. g5 {[%emt 0:00:14]} Kxh3 {[%emt 0:00:27]} 76. Re4 {[%emt 0:00:31]} Kg3 {[%emt 0:00:11]} 77. Kh6 {[%emt 0:00:16]} Rb6 {[%emt 0:01:05]} 78. Re8 {[%emt 0:01:26]} Kf4 {[%emt 0:00:23]} 79. Rg8 {[%emt 0:01:23]} Kf5 {[%emt 0:00:04]} 80. Rf8+ {[%emt 0:00:14]} Ke5 {[%emt 0:00:24]} 81. Kg7 {[%emt 0:00:06]} Ra6 {[%emt 0:05:08]} 82. Rf6 {[%emt 0:00:09]} Ra1 {[%emt 0:01:05]} 83. Kxg6 {[%emt 0:00:16]} Rg1 {[%emt 0:00:24]} 84. Rb6 {[%emt 0:00:11]} Rg2 {[%emt 0:00:19]} 85. Kh6 {[%emt 0:00:40]} Kf5 {[%emt 0:01:55]} 86. g6 {[%emt 0:00:13]} Rh2+ {[%emt 0:00:36]} 87. Kg7 {[%emt 0:00:00]} Rg2 {[%emt 0:00:24]} 88. Kh6 {[%emt 0:01:00]} Rh2+ {[%emt 0:00:36] Kh7} 1-0

[Event "IIFL Wealth 4th Mumbai Open"]
[Site "Mumbai"]
[Date "2019.01.02"]
[Round "4"]
[White "Abhinessh, S."]
[Black "Rushyendra Chowdary Kantipudi"]
[Result "1-0"]
[ECO "B50"]
[WhiteElo "1790"]
[BlackElo "1527"]
[Annotator "NA"]
[PlyCount "47"]
[EventDate "2018.12.30"]
[EventType "swiss"]
[EventCountry "IND"]
[SourceTitle "playchess.com"]
[Source "ChessBase"]
[SourceQuality "1"]
[TimeControl "40/5400+30:1800+30"]

1. e4 {[%emt 0:00:00]} c5 {[%emt 0:00:00]} 2. Nf3 {[%emt 0:00:00]} d6 {[%emt 0:00:04]} 3. c3 {[%emt 0:00:00]} Nf6 {[%emt 0:01:41]} 4. Be2 {[%emt 0:00:00]} Nc6 {[%emt 0:01:46]} 5. d4 {[%emt 0:05:54]} cxd4 {[%emt 0:04:20]} 6. cxd4 {[%emt 0:00:07]} Nxe4 {[%emt 0:19:02]} 7. d5 {[%emt 0:00:09]} Qa5+ {[%emt 0:00:07]} 8. Nc3 {[%emt 0:00:08]} Nxc3 {[%emt 0:02:29]} 9. bxc3 {[%emt 0:00:12]} Ne5 {[%emt 0:04:55]} 10. Nxe5 {[%emt 0:00:09]} dxe5 {[%emt 0:02:03]} 11. Qb3 {[%emt 0:16:10]} Qc7 {[%emt 0:03:46]} 12. Ba3 {[%emt 0:01:15]} g6 {[%emt 0:01:03]} 13. Rd1 {[%emt 0:02:51]} Bd7 {[%emt 0:03:41]} 14. O-O {[%emt 0:00:58]} Qb6 {[%emt 0:00:08]} 15. Qc2 {[%emt 0:00:33]} Bg7 {[%emt 0:01:25]} 16. c4 {[%emt 0:07:25]} Qf6 {[%emt 0:14:52]} 17. Qb3 {[%emt 0:09:58]} Qb6 {[%emt 0:00:00]} 18. Qc2 {[%emt 0:00:00]} Qf6 {[%emt 0:01:00]} 19. Qb3 {[%emt 0:01:00]} Qb6 {[%emt 0:06:31]} 20. Qc3 {[%emt 0:03:40]} Bf6 {[%emt 0:03:29]} 21. d6 {[%emt 0:10:10]} e6 22. Qf3 Bg7 {[%emt 0:09:43]} 23. Rb1 {[%emt 0:01:05]} Bc6 {[%emt 0:01:23]} 24. d7+ 1-0

[Event "IIFL Wealth 4th Mumbai Open"]
[Site "Mumbai"]
[Date "2019.01.02"]
[Round "4"]
[White "Patil, Ketan"]
[Black "Ananya, Arumbakkam"]
[Result "0-1"]
[ECO "C68"]
[WhiteElo "1767"]
[BlackElo "1405"]
[Annotator "NA"]
[PlyCount "90"]
[EventDate "2018.12.30"]
[EventType "swiss"]
[EventCountry "IND"]
[SourceTitle "playchess.com"]
[Source "ChessBase"]
[SourceQuality "1"]
[TimeControl "40/5400+30:1800+30"]

1. e4 e5 2. Nf3 Nc6 3. Bb5 a6 4. Bxc6 dxc6 5. O-O Bg4 6. h3 h5 7. d3 Bc5 8. Be3 Bxe3 9. fxe3 Bxf3 10. Qxf3 f6 11. Nd2 Qd7 12. b4 O-O-O 13. a4 g5 14. Qe2 g4 15. h4 g3 16. Rfb1 b6 17. d4 Kb7 18. b5 cxb5 19. axb5 a5 20. Nf3 Qg4 21. Qc4 Qxe4 22. Qb3 Ne7 23. Re1 Nf5 24. Qe6 Rd6 25. Nd2 Qg4 26. Qc4 Nxh4 27. Qd3 exd4 28. e4 Ng6 29. Nf3 h4 30. e5 fxe5 31. Nxe5 Nxe5 32. Rxe5 h3 33. gxh3 Qxh3 34. Qe4+ Ka7 35. Qg2 Qg4 36. Re7 Kb8 37. Rae1 Qh5 38. R1e2 Qxb5 39. R7e5 Qc6 40. R5e4 Rdh6 41. Qf3 Re6 42. Qf4 Rxe4 43. Rxe4 Qxc2 44. Qf3 Rh1+ 45. Qxh1 Qf2# 0-1

[Event "IIFL Wealth 4th Mumbai Open"]
[Site "Mumbai"]
[Date "2019.01.02"]
[Round "4"]
[White "Sadbhav, Rautela"]
[Black "Sangoi, Hriday"]
[Result "1/2-1/2"]
[ECO "B15"]
[WhiteElo "1746"]
[BlackElo "1401"]
[Annotator "NA"]
[PlyCount "84"]
[EventDate "2018.12.30"]
[EventType "swiss"]
[EventCountry "IND"]
[SourceTitle "playchess.com"]
[Source "ChessBase"]
[SourceQuality "1"]
[TimeControl "40/5400+30:1800+30"]

1. e4 {[%emt 0:00:00]} c6 {[%emt 0:00:00]} 2. d4 {[%emt 0:00:00]} d5 {[%emt 0:00:00]} 3. Nc3 {[%emt 0:00:00]} e6 {[%emt 0:00:19]} 4. Nf3 {[%emt 0:00:49]} Nf6 {[%emt 0:00:15]} 5. e5 {[%emt 0:01:05]} Nfd7 {[%emt 0:00:09]} 6. Be3 {[%emt 0:02:16]} c5 {[%emt 0:00:56]} 7. dxc5 {[%emt 0:04:16]} Bxc5 {[%emt 0:01:02]} 8. Bxc5 {[%emt 0:01:48]} Nxc5 {[%emt 0:00:14]} 9. Qd2 {[%emt 0:01:34]} a6 {[%emt 0:03:16]} 10. Be2 {[%emt 0:02:31]} Nc6 {[%emt 0:01:22]} 11. O-O-O {[%emt 0:13:14]} b5 {[%emt 0:08:27]} 12. Qf4 {[%emt 0:18:57]} b4 {[%emt 0:15:50]} 13. Nb1 {[%emt 0:00:43]} Qa5 {[%emt 0:01:59]} 14. Nd4 {[%emt 0:14:21]} Bd7 {[%emt 0:10:15]} 15. Nb3 {[%emt 0:07:45]} Nxb3+ {[%emt 0:01:52]} 16. axb3 {[%emt 0:00:22]} Qc7 {[%emt 0:00:55]} 17. Rhe1 {[%emt 0:06:23]} Na5 {[%emt 0:14:48]} 18. Qxb4 {[%emt 0:06:03]} Rb8 {[%emt 0:06:45]} 19. Qc3 {[%emt 0:00:47]} Qb6 {[%emt 0:00:45]} 20. Qd4 {[%emt 0:05:12]} Qxd4 {[%emt 0:08:14]} 21. Rxd4 {[%emt 0:00:12]} Nc6 {[%emt 0:00:11]} 22. Rd2 {[%emt 0:04:51]} a5 {[%emt 0:00:47]} 23. f4 {[%emt 0:00:37]} O-O {[%emt 0:00:50]} 24. Nc3 {[%emt 0:01:41]} Nb4 {[%emt 0:01:33]} 25. Ne4 {[%emt 0:03:58]} a4 {[%emt 0:02:08]} 26. Nc5 {[%emt 0:02:33]} Be8 {[%emt 0:01:36]} 27. Nxa4 {[%emt 0:00:36]} Bxa4 {[%emt 0:00:20]} 28. bxa4 {[%emt 0:00:02]} Na2+ {[%emt 0:00:08]} 29. Kb1 {[%emt 0:00:59]} Nc3+ {[%emt 0:00:10]} 30. Ka1 {[%emt 0:00:18]} Nxa4 {[%emt 0:00:08]} 31. b3 {[%emt 0:00:17]} Nc3 {[%emt 0:00:46]} 32. Kb2 {[%emt 0:00:46]} Rfc8 {[%emt 0:00:36]} 33. Ra1 {[%emt 0:00:42]} Rb4 {[%emt 0:01:17]} 34. Ba6 {[%emt 0:00:42]} Rc7 {[%emt 0:00:25]} 35. Bc4 {[%emt 0:00:35]} Na4+ {[%emt 0:03:19]} 36. Ka3 {[%emt 0:00:11]} Rb8 {[%emt 0:02:10]} 37. Bxd5 {[%emt 0:00:51]} exd5 {[%emt 0:00:57]} 38. bxa4 {[%emt 0:00:10]} Rc3+ {[%emt 0:00:06]} 39. Ka2 {[%emt 0:00:24]} Rc4 {[%emt 0:00:08]} 40. Ka3 {[%emt 0:00:00]} Rc3+ {[%emt 0:00:00]} 41. Ka2 {[%emt 0:01:07]} Rc4 {[%emt 0:00:06]} 42. Ka3 {[%emt 0:00:51]} Rc3+ {[%emt 0:00:14]} 1/2-1/2

[Event "IIFL Wealth 4th Mumbai Open"]
[Site "Mumbai"]
[Date "2019.01.02"]
[Round "4"]
[White "Shivasubramanian, R."]
[Black "Abhinav Dubey"]
[Result "1-0"]
[ECO "D02"]
[WhiteElo "1738"]
[BlackElo "1425"]
[Annotator "NA"]
[PlyCount "143"]
[EventDate "2018.12.30"]
[EventType "swiss"]
[EventCountry "IND"]
[SourceTitle "playchess.com"]
[Source "ChessBase"]
[SourceQuality "1"]
[TimeControl "40/5400+30:1800+30"]

1. d4 d5 2. Nf3 Nf6 3. Bf4 c5 4. c3 Nc6 5. e3 Qb6 6. Qc1 g6 7. Bd3 Bg7 8. Nbd2 O-O 9. h3 c4 10. Bc2 Qd8 11. e4 dxe4 12. Nxe4 Qd5 13. Ned2 Qd8 14. Ne4 Qd5 15. Ng3 Re8 16. Qe3 b5 17. O-O Bb7 18. Be5 Bc8 19. Bf4 Bb7 20. Be5 b4 21. Rfe1 a5 22. Qg5 h6 23. Qf4 Qd7 24. Bxf6 exf6 25. Ne4 f5 26. Nc5 Rxe1+ 27. Rxe1 Qc8 28. Ba4 bxc3 29. bxc3 g5 30. Qd6 Bf8 31. Qd5 Nd8 32. Nxb7 Qxb7 33. Qxf5 Ne6 34. Bc2 Bg7 35. Be4 Qb8 36. Bxa8 Qxa8 37. Qb5 Kh7 38. Qxc4 Qb7 39. Qd3+ Kg8 40. Qe4 Qb2 41. Qa8+ Kh7 42. Qxa5 Nf4 43. Qf5+ Kg8 44. Re8+ Bf8 45. g3 Qc1+ 46. Ne1 Ne6 47. Rxe6 fxe6 48. Qxe6+ Kh7 49. Qe3 Qa1 50. Kg2 Qxa2 51. Nf3 Qd5 52. Qd3+ Kh8 53. c4 Qb7 54. Qf5 Bg7 55. d5 Qc7 56. Qe4 Qd6 57. Nd4 Be5 58. Nf5 Qf6 59. c5 h5 60. d6 Qe6 61. d7 Qxd7 62. Qxe5+ Kh7 63. Qe7+ Kh8 64. Qe5+ Kh7 65. Qe7+ Qxe7 66. Nxe7 g4 67. hxg4 hxg4 68. c6 Kg7 69. c7 Kh6 70. c8=Q Kh7 71. Qf5+ Kh6 72. Qg6# 1-0

[Event "IIFL Wealth 4th Mumbai Open"]
[Site "Mumbai"]
[Date "2019.01.02"]
[Round "4"]
[White "Pawar, Harshit"]
[Black "Negi Augustiya"]
[Result "1/2-1/2"]
[ECO "B20"]
[WhiteElo "1719"]
[BlackElo "1521"]
[Annotator "NA"]
[PlyCount "104"]
[EventDate "2018.12.30"]
[EventType "swiss"]
[EventCountry "IND"]
[SourceTitle "playchess.com"]
[Source "ChessBase"]
[SourceQuality "1"]
[TimeControl "40/5400+30:1800+30"]

1. e4 {[%emt 0:00:00]} c5 {[%emt 0:00:00]} 2. a3 {[%emt 0:01:40]} d6 {[%emt 0:05:14]} 3. b4 {[%emt 0:02:18]} cxb4 {[%emt 0:00:50]} 4. axb4 {[%emt 0:01:56]} Nf6 {[%emt 0:01:09]} 5. d3 {[%emt 0:02:59]} e6 {[%emt 0:20:48]} 6. c3 {[%emt 0:02:54]} Be7 {[%emt 0:08:10]} 7. Be3 {[%emt 0:02:46]} b6 {[%emt 0:03:34]} 8. h3 {[%emt 0:01:55]} Qc7 {[%emt 0:07:36]} 9. Nf3 {[%emt 0:02:33]} O-O {[%emt 0:01:47]} 10. Be2 Nbd7 {[%emt 0:02:27]} 11. O-O {[%emt 0:05:46]} d5 {[%emt 0:00:49]} 12. exd5 {[%emt 0:06:22]} Nxd5 {[%emt 0:00:09]} 13. Bd2 {[%emt 0:01:57]} Bb7 {[%emt 0:02:20]} 14. Qb3 {[%emt 0:02:33]} Ne5 {[%emt 0:10:00]} 15. d4 {[%emt 0:03:25]} Nxf3+ {[%emt 0:02:58]} 16. Bxf3 {[%emt 0:00:32]} Nf6 {[%emt 0:01:25]} 17. Bxb7 {[%emt 0:05:01]} Qxb7 {[%emt 0:00:09]} 18. Na3 {[%emt 0:03:13]} Rfc8 {[%emt 0:03:21]} 19. Rac1 {[%emt 0:05:50]} Qd5 {[%emt 0:02:38]} 20. Qb2 {[%emt 0:02:43]} b5 {[%emt 0:01:47]} 21. Nc2 {[%emt 0:00:53]} Ne4 {[%emt 0:02:23]} 22. Ne3 {[%emt 0:01:52]} Qb7 {[%emt 0:01:33]} 23. Ra1 {[%emt 0:01:01]} Nd6 {[%emt 0:03:36]} 24. Ra2 {[%emt 0:05:10]} Nc4 {[%emt 0:00:33]} 25. Nxc4 {[%emt 0:00:19]} Rxc4 {[%emt 0:00:13]} 26. Rfa1 {[%emt 0:02:06]} h6 {[%emt 0:01:21]} 27. Ra6 {[%emt 0:03:27]} Rc6 {[%emt 0:02:24]} 28. R6a2 {[%emt 0:01:23]} a6 {[%emt 0:03:42]} 29. Qb1 {[%emt 0:00:56]} Rc4 {[%emt 0:04:44]} 30. Qd3 {[%emt 0:00:23]} Rc6 {[%emt 0:01:48]} 31. Qf3 {[%emt 0:00:55]} Qc8 {[%emt 0:01:12]} 32. Qe2 {[%emt 0:01:09]} Qb7 {[%emt 0:00:14]} 33. Qg4 {[%emt 0:01:51]} Kf8 {[%emt 0:00:19]} 34. f4 {[%emt 0:01:07]} Rb6 {[%emt 0:00:50]} 35. Rf1 {[%emt 0:03:50]} Qe4 {[%emt 0:00:49]} 36. Qg3 {[%emt 0:01:05]} Qd5 {[%emt 0:00:27]} 37. Raa1 {[%emt 0:00:35]} a5 {[%emt 0:01:20]} 38. bxa5 {[%emt 0:01:11]} Rba6 {[%emt 0:00:15]} 39. Rac1 {[%emt 0:01:15]} Rxa5 {[%emt 0:00:28]} 40. Rce1 {[%emt 0:00:00]} Bf6 {[%emt 0:00:00]} 41. Kh2 {[%emt 0:03:06]} Ra2 {[%emt 0:02:47]} 42. Re2 {[%emt 0:00:41]} Rc2 {[%emt 0:01:34]} 43. Qe1 {[%emt 0:03:28]} Raa2 {[%emt 0:02:14]} 44. Rff2 {[%emt 0:01:58]} Bh4 {[%emt 0:02:41]} 45. g3 {[%emt 0:00:29]} Bf6 {[%emt 0:03:10]} 46. f5 {[%emt 0:04:07]} Qa8 {[%emt 0:02:40]} 47. Qf1 {[%emt 0:08:03]} Ra1 {[%emt 0:03:57]} 48. Re1 {[%emt 0:00:42]} Rxe1 {[%emt 0:01:41]} 49. Qxe1 {[%emt 0:04:44]} exf5 {[%emt 0:02:38]} 50. Re2 {[%emt 0:01:22]} Ra2 {[%emt 0:03:59]} 51. c4 {[%emt 0:03:23]} g5 {[%emt 0:01:08]} 52. d5 {[%emt 0:09:32]} bxc4 1/2-1/2